[Event "*** Titled Tuesday Blitz"]
[Site "Chess.com"]
[Date "2020.03.03"]
[Round "7"]
[White "csati17"]
[Black "Rish_97"]
[Result "1-0"]
[WhiteElo "2603"]
[BlackElo "2747"]
[TimeControl "180+1"]
[EndTime "10:13:50 PST"]
[Termination "csati17 won on time"]

1. c4 {[%clk 0:03:00.9]} 1... e5 {[%clk 0:02:57.2]} 2. g3 {[%clk 0:03:00.6]}
2... Nf6 {[%clk 0:02:54.9]} 3. Bg2 {[%clk 0:03:00.6]} 3... d5 {[%clk 0:02:54.5]}
4. cxd5 {[%clk 0:03:00.9]} 4... Nxd5 {[%clk 0:02:55.4]} 5. Nc3 {[%clk
0:03:01.4]} 5... Nb6 {[%clk 0:02:55.6]} 6. Nf3 {[%clk 0:03:00.4]} 6... Nc6
{[%clk 0:02:55.7]} 7. d3 {[%clk 0:03:01.1]} 7... Be7 {[%clk 0:02:55.3]} 8. O-O
{[%clk 0:03:01.4]} 8... O-O {[%clk 0:02:55.5]} 9. a3 {[%clk 0:03:02]} 9... a5
{[%clk 0:02:30.1]} 10. Be3 {[%clk 0:03:00.9]} 10... Be6 {[%clk 0:02:30.1]} 11.
Ne4 {[%clk 0:02:53.7]} 11... Nd5 {[%clk 0:02:19.4]} 12. Bc5 {[%clk 0:02:44.8]}
12... f6 {[%clk 0:02:07.9]} 13. Rc1 {[%clk 0:02:29.8]} 13... Rb8 {[%clk
0:01:26]} 14. d4 {[%clk 0:02:06.9]} 14... f5 {[%clk 0:01:18.6]} 15. Bxe7 {[%clk
0:01:59.1]} 15... Qxe7 {[%clk 0:01:19.5]} 16. Nc5 {[%clk 0:01:52]} 16... e4
{[%clk 0:01:19.7]} 17. Ng5 {[%clk 0:01:46.1]} 17... Bf7 {[%clk 0:01:05.6]} 18.
Nxf7 {[%clk 0:01:43.5]} 18... Qxf7 {[%clk 0:01:06.5]} 19. e3 {[%clk 0:01:42.7]}
19... Nd8 {[%clk 0:00:48.8]} 20. Qa4 {[%clk 0:01:34.8]} 20... c6 {[%clk
0:00:43.4]} 21. Rfe1 {[%clk 0:01:18.3]} 21... b6 {[%clk 0:00:41.7]} 22. Nb3
{[%clk 0:01:11.7]} 22... Qf6 {[%clk 0:00:41.8]} 23. f3 {[%clk 0:01:08.7]} 23...
Ra8 {[%clk 0:00:36.9]} 24. Qc4 {[%clk 0:01:06.5]} 24... a4 {[%clk 0:00:33.4]}
25. Nd2 {[%clk 0:01:04.5]} 25... b5 {[%clk 0:00:32.4]} 26. Qa2 {[%clk
0:01:04.2]} 26... exf3 {[%clk 0:00:29]} 27. Bxf3 {[%clk 0:01:05.1]} 27... Kh8
{[%clk 0:00:16.6]} 28. Bxd5 {[%clk 0:01:05.4]} 28... cxd5 {[%clk 0:00:16.9]} 29.
Qxd5 {[%clk 0:01:06.3]} 29... Nf7 {[%clk 0:00:17.3]} 30. Rc6 {[%clk 0:01:00.1]}
30... Qg5 {[%clk 0:00:17.5]} 31. Nf3 {[%clk 0:00:59]} 31... Qg4 {[%clk
0:00:17.9]} 32. Rc7 {[%clk 0:00:55.8]} 32... Ng5 {[%clk 0:00:12.8]} 33. Nxg5
{[%clk 0:00:53.2]} 33... Qxg5 {[%clk 0:00:13.7]} 34. Qxb5 {[%clk 0:00:49.8]}
34... Rae8 {[%clk 0:00:13.2]} 35. Rf7 {[%clk 0:00:40.9]} 35... h6 {[%clk
0:00:09.7]} 36. Rxf8+ {[%clk 0:00:40.2]} 36... Rxf8 {[%clk 0:00:10.6]} 37. Qe5
{[%clk 0:00:40.3]} 37... Qg4 {[%clk 0:00:08.9]} 38. Rc1 {[%clk 0:00:39.5]} 38...
Qf3 {[%clk 0:00:08.1]} 39. d5 {[%clk 0:00:27.1]} 39... Rd8 {[%clk 0:00:06.7]}
40. d6 {[%clk 0:00:26.8]} 40... Qe2 {[%clk 0:00:05.1]} 41. d7 {[%clk 0:00:25.3]}
41... Kh7 {[%clk 0:00:04]} 42. Qxf5+ {[%clk 0:00:25.1]} 42... Kh8 {[%clk
0:00:03.2]} 43. Rc8 {[%clk 0:00:22.8]} 43... Qe1+ {[%clk 0:00:03]} 44. Kg2
{[%clk 0:00:22.9]} 1-0

[Event "*** Titled Tuesday Blitz"]
[Site "Chess.com"]
[Date "2020.03.03"]
[Round "7"]
[White "Danfii"]
[Black "Sjakkerntobi"]
[Result "1-0"]
[WhiteElo "2398"]
[BlackElo "2262"]
[TimeControl "180+1"]
[EndTime "10:13:50 PST"]
[Termination "Danfii won by checkmate"]

1. e4 {[%clk 0:03:00.9]} 1... c5 {[%clk 0:02:59.7]} 2. Nf3 {[%clk 0:03:00.7]}
2... e6 {[%clk 0:03:00.5]} 3. d4 {[%clk 0:03:00.5]} 3... cxd4 {[%clk 0:03:01.4]}
4. Nxd4 {[%clk 0:03:01.2]} 4... Nc6 {[%clk 0:03:02.3]} 5. Nc3 {[%clk 0:03:01.1]}
5... Qc7 {[%clk 0:03:02.8]} 6. Be3 {[%clk 0:03:01.2]} 6... a6 {[%clk 0:03:03]}
7. Qd2 {[%clk 0:02:55.3]} 7... Nf6 {[%clk 0:03:01.3]} 8. O-O-O {[%clk
0:02:55.1]} 8... Bb4 {[%clk 0:03:00.5]} 9. f3 {[%clk 0:02:55]} 9... b5 {[%clk
0:03:00.2]} 10. Nxc6 {[%clk 0:02:38.8]} 10... Qxc6 {[%clk 0:02:59.8]} 11. Bd4
{[%clk 0:02:34.3]} 11... Bb7 {[%clk 0:02:56.7]} 12. Kb1 {[%clk 0:02:26.5]} 12...
Rc8 {[%clk 0:02:56.2]} 13. g4 {[%clk 0:02:19]} 13... O-O {[%clk 0:02:54.4]} 14.
h4 {[%clk 0:02:05.9]} 14... d5 {[%clk 0:02:47.9]} 15. e5 {[%clk 0:01:53.2]}
15... Nd7 {[%clk 0:02:47.2]} 16. h5 {[%clk 0:01:47.4]} 16... Nc5 {[%clk
0:02:46.9]} 17. h6 {[%clk 0:01:45]} 17... g6 {[%clk 0:02:46.2]} 18. Qg5 {[%clk
0:01:36.4]} 18... f6 {[%clk 0:02:46.7]} 19. exf6 {[%clk 0:01:33.2]} 19... Kf7
{[%clk 0:02:46.6]} 20. Bd3 {[%clk 0:01:11.8]} 20... Nxd3 {[%clk 0:02:42.9]} 21.
Rxd3 {[%clk 0:01:11.7]} 21... Bc5 {[%clk 0:02:43.8]} 22. Re1 {[%clk 0:01:00.2]}
22... b4 {[%clk 0:02:41.9]} 23. Ne2 {[%clk 0:01:00.2]} 23... Bd6 {[%clk
0:02:40.4]} 24. Rd2 {[%clk 0:00:55.3]} 24... a5 {[%clk 0:02:39.3]} 25. Be5
{[%clk 0:00:49.7]} 25... Bxe5 {[%clk 0:02:30.4]} 26. Qxe5 {[%clk 0:00:49.4]}
26... Qc7 {[%clk 0:02:30.4]} 27. Nd4 {[%clk 0:00:48.7]} 27... Qxe5 {[%clk
0:02:30.7]} 28. Rxe5 {[%clk 0:00:49.4]} 28... Rfe8 {[%clk 0:02:27.9]} 29. g5
{[%clk 0:00:49.4]} 29... Rc4 {[%clk 0:02:26.3]} 30. Kc1 {[%clk 0:00:45.2]} 30...
a4 {[%clk 0:02:22.6]} 31. Kd1 {[%clk 0:00:42.8]} 31... Ba6 {[%clk 0:02:17.4]}
32. Ke1 {[%clk 0:00:42.6]} 32... Rcc8 {[%clk 0:02:09.4]} 33. Kf2 {[%clk
0:00:42.3]} 33... Rc4 {[%clk 0:02:05.7]} 34. Ke3 {[%clk 0:00:42.5]} 34... Bc8
{[%clk 0:02:05.5]} 35. f4 {[%clk 0:00:42.6]} 35... Bd7 {[%clk 0:02:05.4]} 36.
Kf2 {[%clk 0:00:37.2]} 36... Rec8 {[%clk 0:02:03.9]} 37. Ke3 {[%clk 0:00:33]}
37... a3 {[%clk 0:02:02.9]} 38. b3 {[%clk 0:00:26.9]} 38... Rc3+ {[%clk
0:02:02.8]} 39. Rd3 {[%clk 0:00:27.5]} 39... Rxc2 {[%clk 0:01:56.1]} 40. Nxc2
{[%clk 0:00:26.8]} 40... Rxc2 {[%clk 0:01:57]} 41. Rdxd5 {[%clk 0:00:24.3]}
41... exd5 {[%clk 0:01:53]} 42. Re7+ {[%clk 0:00:24.2]} 42... Kf8 {[%clk
0:01:53.4]} 43. Rxd7 {[%clk 0:00:24.6]} 43... Rxa2 {[%clk 0:01:54.3]} 44. Rxh7
{[%clk 0:00:23]} 44... Rb2 {[%clk 0:01:52.8]} 45. Rh8+ {[%clk 0:00:22.5]} 45...
Kf7 {[%clk 0:01:52.7]} 46. Ra8 {[%clk 0:00:19.6]} 46... a2 {[%clk 0:01:49.3]}
47. h7 {[%clk 0:00:19.4]} 47... Rxb3+ {[%clk 0:01:47.8]} 48. Kd4 {[%clk
0:00:19]} 48... Rh3 {[%clk 0:01:47.7]} 49. Rxa2 {[%clk 0:00:17.1]} 49... Rxh7
{[%clk 0:01:47.7]} 50. Ra7+ {[%clk 0:00:17.6]} 50... Kg8 {[%clk 0:01:47.4]} 51.
Ra8+ {[%clk 0:00:15.9]} 51... Kf7 {[%clk 0:01:48]} 52. Kxd5 {[%clk 0:00:15.6]}
52... Rh4 {[%clk 0:01:48.2]} 53. Ra7+ {[%clk 0:00:14.7]} 53... Ke8 {[%clk
0:01:46.4]} 54. Ke6 {[%clk 0:00:15]} 54... Kd8 {[%clk 0:01:46.5]} 55. f7 {[%clk
0:00:15.2]} 55... Rxf4 {[%clk 0:01:46.6]} 56. Ra8+ {[%clk 0:00:14.7]} 56... Kc7
{[%clk 0:01:46.9]} 57. f8=Q {[%clk 0:00:15.2]} 57... Rxf8 {[%clk 0:01:47.8]} 58.
Rxf8 {[%clk 0:00:15.8]} 58... b3 {[%clk 0:01:48.7]} 59. Rf3 {[%clk 0:00:15.2]}
59... b2 {[%clk 0:01:49.2]} 60. Rb3 {[%clk 0:00:15.8]} 60... b1=Q {[%clk
0:01:22.8]} 61. Rxb1 {[%clk 0:00:15.5]} 61... Kc6 {[%clk 0:01:23.5]} 62. Kf6
{[%clk 0:00:16]} 62... Kc5 {[%clk 0:01:24.4]} 63. Kxg6 {[%clk 0:00:16.7]} 63...
Kc4 {[%clk 0:01:25.3]} 64. Kf6 {[%clk 0:00:17.4]} 64... Kc3 {[%clk 0:01:26.2]}
65. Rh1 {[%clk 0:00:17.1]} 65... Kc2 {[%clk 0:01:27.1]} 66. g6 {[%clk
0:00:17.8]} 66... Kd2 {[%clk 0:01:28]} 67. g7 {[%clk 0:00:18.5]} 67... Ke2
{[%clk 0:01:28.9]} 68. g8=Q {[%clk 0:00:19.2]} 68... Ke3 {[%clk 0:01:29.8]} 69.
Qg3+ {[%clk 0:00:19.1]} 69... Ke4 {[%clk 0:01:30.7]} 70. Rh4+ {[%clk 0:00:19.4]}
70... Kd5 {[%clk 0:01:31.4]} 71. Qe5+ {[%clk 0:00:19.9]} 71... Kc6 {[%clk
0:01:32.3]} 72. Rc4+ {[%clk 0:00:20.2]} 72... Kd7 {[%clk 0:01:32.8]} 73. Qd5+
{[%clk 0:00:19]} 73... Ke8 {[%clk 0:01:33.5]} 74. Rc8# {[%clk 0:00:18.9]} 1-0

[Event "*** Titled Tuesday Blitz"]
[Site "Chess.com"]
[Date "2020.03.03"]
[Round "7"]
[White "wonderfultime"]
[Black "Witik"]
[Result "1-0"]
[WhiteElo "3013"]
[BlackElo "2642"]
[TimeControl "180+1"]
[EndTime "10:13:53 PST"]
[Termination "wonderfultime won by resignation"]

1. d4 {[%clk 0:03:00.9]} 1... Nf6 {[%clk 0:02:56.8]} 2. Nf3 {[%clk 0:03:00.8]}
2... g6 {[%clk 0:02:56.8]} 3. Bg5 {[%clk 0:02:56.4]} 3... Bg7 {[%clk 0:02:56.5]}
4. Nbd2 {[%clk 0:02:56.6]} 4... d5 {[%clk 0:02:56.1]} 5. c3 {[%clk 0:02:56.3]}
5... O-O {[%clk 0:02:55.9]} 6. e3 {[%clk 0:02:56.6]} 6... Nbd7 {[%clk
0:02:55.5]} 7. Bd3 {[%clk 0:02:56.4]} 7... c5 {[%clk 0:02:53]} 8. O-O {[%clk
0:02:56.6]} 8... Re8 {[%clk 0:02:52.8]} 9. Re1 {[%clk 0:02:35.2]} 9... e5 {[%clk
0:02:49.4]} 10. dxe5 {[%clk 0:02:33.2]} 10... Nxe5 {[%clk 0:02:49.9]} 11. Nxe5
{[%clk 0:02:33.8]} 11... Rxe5 {[%clk 0:02:50.8]} 12. Bf4 {[%clk 0:02:34.2]}
12... Re8 {[%clk 0:02:51.1]} 13. h3 {[%clk 0:02:34.5]} 13... Bd7 {[%clk
0:02:47.7]} 14. Rc1 {[%clk 0:02:26.4]} 14... Bc6 {[%clk 0:02:46.7]} 15. Bf1
{[%clk 0:02:22.9]} 15... Qe7 {[%clk 0:02:32]} 16. Qb3 {[%clk 0:02:19.4]} 16...
a6 {[%clk 0:02:27.8]} 17. Qa3 {[%clk 0:02:17.4]} 17... a5 {[%clk 0:02:00]} 18.
Qb3 {[%clk 0:01:58.7]} 18... b5 {[%clk 0:01:37.8]} 19. Qc2 {[%clk 0:01:53.4]}
19... Rac8 {[%clk 0:01:25.9]} 20. Nf3 {[%clk 0:01:37.9]} 20... Ne4 {[%clk
0:01:24.5]} 21. Rcd1 {[%clk 0:01:35.6]} 21... b4 {[%clk 0:01:01.1]} 22. c4
{[%clk 0:01:34.8]} 22... Rcd8 {[%clk 0:00:53.4]} 23. Be2 {[%clk 0:00:59.8]}
23... g5 {[%clk 0:00:35.1]} 24. Bh2 {[%clk 0:00:56.6]} 24... Qf6 {[%clk
0:00:30.7]} 25. cxd5 {[%clk 0:00:56.2]} 25... Rxd5 {[%clk 0:00:23.2]} 26. Rxd5
{[%clk 0:00:32.5]} 26... Bxd5 {[%clk 0:00:23.2]} 27. Bb5 {[%clk 0:00:32.8]}
27... Re6 {[%clk 0:00:13.4]} 28. Rd1 {[%clk 0:00:29.6]} 28... Bxa2 {[%clk
0:00:12.9]} 29. Qa4 {[%clk 0:00:24.5]} 29... Qxb2 {[%clk 0:00:09]} 30. Qxa5
{[%clk 0:00:18.6]} 30... Qxf2+ {[%clk 0:00:08.6]} 31. Kh1 {[%clk 0:00:19]} 31...
Qxe3 {[%clk 0:00:08.9]} 32. Qd8+ {[%clk 0:00:07.1]} 32... Bf8 {[%clk 0:00:09.2]}
33. Bg1 {[%clk 0:00:07.4]} 33... Ng3+ {[%clk 0:00:09.2]} 34. Kh2 {[%clk
0:00:07.9]} 34... Qf4 {[%clk 0:00:10.1]} 35. Qxg5+ {[%clk 0:00:08.1]} 35... Qxg5
{[%clk 0:00:07.1]} 36. Nxg5 {[%clk 0:00:09]} 36... Rg6 {[%clk 0:00:07.8]} 37. h4
{[%clk 0:00:06.6]} 37... Nf5 {[%clk 0:00:07.7]} 38. Rd8 {[%clk 0:00:06.8]} 38...
Nxh4 {[%clk 0:00:06.8]} 39. Bxc5 {[%clk 0:00:07]} 39... Rxg5 {[%clk 0:00:06.3]}
40. Bxf8 {[%clk 0:00:07.3]} 40... h6 {[%clk 0:00:02]} 41. Bxh6+ {[%clk
0:00:06.6]} 41... Kh7 {[%clk 0:00:02.9]} 42. Bxg5 {[%clk 0:00:07.5]} 42... Nf5
{[%clk 0:00:03.3]} 43. Bf6 {[%clk 0:00:07.5]} 43... Kg6 {[%clk 0:00:03.6]} 44.
Bb2 {[%clk 0:00:07.9]} 44... Be6 {[%clk 0:00:04.5]} 45. Bd3 {[%clk 0:00:08.1]}
45... b3 {[%clk 0:00:05.1]} 46. g4 {[%clk 0:00:08.4]} 1-0

[Event "*** Titled Tuesday Blitz"]
[Site "Chess.com"]
[Date "2020.03.03"]
[Round "7"]
[White "JSPrepz"]
[Black "Vugar_Manafov"]
[Result "1-0"]
[WhiteElo "2752"]
[BlackElo "2583"]
[TimeControl "180+1"]
[EndTime "10:13:54 PST"]
[Termination "JSPrepz won by resignation"]

1. e4 {[%clk 0:03:00.9]} 1... Nf6 {[%clk 0:02:59.9]} 2. e5 {[%clk 0:03:00.9]}
2... Nd5 {[%clk 0:02:59.5]} 3. c4 {[%clk 0:03:01.8]} 3... Nb6 {[%clk 0:02:59.1]}
4. a4 {[%clk 0:03:02.7]} 4... a5 {[%clk 0:02:58.8]} 5. Ra3 {[%clk 0:03:02.9]}
5... d6 {[%clk 0:02:57.8]} 6. exd6 {[%clk 0:03:01.9]} 6... cxd6 {[%clk
0:02:58.7]} 7. Rg3 {[%clk 0:02:59.8]} 7... Nc6 {[%clk 0:02:57.4]} 8. d4 {[%clk
0:02:52.8]} 8... g6 {[%clk 0:02:55.6]} 9. h4 {[%clk 0:02:52.7]} 9... h5 {[%clk
0:02:54]} 10. Nc3 {[%clk 0:02:51.6]} 10... Bg7 {[%clk 0:02:53.2]} 11. Be3 {[%clk
0:02:51]} 11... Bf5 {[%clk 0:02:49.1]} 12. Bd3 {[%clk 0:02:48.3]} 12... Bxd3
{[%clk 0:02:46.9]} 13. Qxd3 {[%clk 0:02:49.2]} 13... Rc8 {[%clk 0:02:41.8]} 14.
b3 {[%clk 0:02:44.7]} 14... e5 {[%clk 0:02:08.9]} 15. Nge2 {[%clk 0:02:37.4]}
15... O-O {[%clk 0:02:07]} 16. O-O {[%clk 0:02:30.4]} 16... Re8 {[%clk
0:02:03.7]} 17. dxe5 {[%clk 0:02:28.9]} 17... Nxe5 {[%clk 0:01:59.6]} 18. Qd2
{[%clk 0:02:26.6]} 18... Ng4 {[%clk 0:01:55.6]} 19. Bg5 {[%clk 0:02:24.1]} 19...
Bf6 {[%clk 0:01:46.6]} 20. Rd1 {[%clk 0:02:10.9]} 20... Re6 {[%clk 0:01:35]} 21.
Rf3 {[%clk 0:01:52.3]} 21... Bxg5 {[%clk 0:01:28.9]} 22. hxg5 {[%clk 0:01:53.2]}
22... Qe7 {[%clk 0:01:28.2]} 23. Nf4 {[%clk 0:01:44.9]} 23... Re5 {[%clk
0:01:24.9]} 24. Nfd5 {[%clk 0:01:45.1]} 24... Nxd5 {[%clk 0:01:22.3]} 25. Nxd5
{[%clk 0:01:46]} 25... Qe6 {[%clk 0:01:18.6]} 26. g3 {[%clk 0:01:34.2]} 26...
Re8 {[%clk 0:00:47.4]} 27. Kg2 {[%clk 0:01:11.7]} 27... Re2 {[%clk 0:00:41.8]}
28. Qd4 {[%clk 0:01:11.7]} 28... Qe5 {[%clk 0:00:21.7]} 29. Qxe5 {[%clk
0:01:03.8]} 29... R8xe5 {[%clk 0:00:22.6]} 30. Nf6+ {[%clk 0:00:44.2]} 30...
Nxf6 {[%clk 0:00:19.3]} 31. gxf6 {[%clk 0:00:39.8]} 31... Re6 {[%clk 0:00:18.9]}
32. Rd5 {[%clk 0:00:40]} 32... R2e5 {[%clk 0:00:17.1]} 33. Rfd3 {[%clk 0:00:28]}
33... Rxf6 {[%clk 0:00:12.6]} 34. Rxd6 {[%clk 0:00:28.2]} 34... Rxd6 {[%clk
0:00:11.3]} 35. Rxd6 {[%clk 0:00:28.1]} 35... Kg7 {[%clk 0:00:09]} 36. Rb6
{[%clk 0:00:27.8]} 36... Re7 {[%clk 0:00:09.1]} 37. Rb5 {[%clk 0:00:27.8]} 37...
f6 {[%clk 0:00:08]} 38. Rxa5 {[%clk 0:00:27.7]} 38... g5 {[%clk 0:00:08.9]} 39.
Ra7 {[%clk 0:00:23.9]} 39... Kg6 {[%clk 0:00:08.6]} 40. a5 {[%clk 0:00:24.4]}
40... Rf7 {[%clk 0:00:06.9]} 41. c5 {[%clk 0:00:20.1]} 41... Rc7 {[%clk
0:00:02.9]} 42. b4 {[%clk 0:00:19.9]} 42... h4 {[%clk 0:00:02.5]} 43. a6 {[%clk
0:00:19.3]} 43... Rc6 {[%clk 0:00:02.4]} 1-0

[Event "*** Titled Tuesday Blitz"]
[Site "Chess.com"]
[Date "2020.03.03"]
[Round "7"]
[White "NemtsevIgor"]
[Black "Gogolev_Artemy"]
[Result "0-1"]
[WhiteElo "2345"]
[BlackElo "2487"]
[TimeControl "180+1"]
[EndTime "10:13:55 PST"]
[Termination "Gogolev_Artemy won by resignation"]

1. d4 {[%clk 0:03:00.9]} 1... Nf6 {[%clk 0:02:53]} 2. Bf4 {[%clk 0:03:00.1]}
2... g6 {[%clk 0:00:53]} 3. e3 {[%clk 0:02:58.2]} 3... Bg7 {[%clk 0:00:50.8]} 4.
Nf3 {[%clk 0:02:57]} 4... O-O {[%clk 0:00:50.9]} 5. Be2 {[%clk 0:02:56.6]} 5...
d6 {[%clk 0:00:51.3]} 6. O-O {[%clk 0:02:55.8]} 6... Nh5 {[%clk 0:00:51.2]} 7.
Bg5 {[%clk 0:02:55.1]} 7... h6 {[%clk 0:00:50.8]} 8. Bh4 {[%clk 0:02:55.1]} 8...
g5 {[%clk 0:00:51.1]} 9. Nfd2 {[%clk 0:02:55]} 9... Nf4 {[%clk 0:00:47.2]} 10.
exf4 {[%clk 0:02:48]} 10... gxh4 {[%clk 0:00:47.3]} 11. c3 {[%clk 0:02:40.7]}
11... c5 {[%clk 0:00:46.6]} 12. dxc5 {[%clk 0:02:35.9]} 12... dxc5 {[%clk
0:00:47.5]} 13. Nf3 {[%clk 0:02:27.2]} 13... Qc7 {[%clk 0:00:44.5]} 14. Nxh4
{[%clk 0:02:20.2]} 14... Qxf4 {[%clk 0:00:43.9]} 15. g3 {[%clk 0:02:20.2]} 15...
Qf6 {[%clk 0:00:40.1]} 16. Nd2 {[%clk 0:02:14.3]} 16... Nc6 {[%clk 0:00:31.8]}
17. Ne4 {[%clk 0:02:09.7]} 17... Qe5 {[%clk 0:00:31.7]} 18. Bf3 {[%clk
0:01:59.1]} 18... Bh3 {[%clk 0:00:31.2]} 19. Re1 {[%clk 0:01:56.6]} 19... Rad8
{[%clk 0:00:30.8]} 20. Qb3 {[%clk 0:01:43.5]} 20... b6 {[%clk 0:00:25.7]} 21.
Qa4 {[%clk 0:01:22.2]} 21... Qc7 {[%clk 0:00:25]} 22. Nxc5 {[%clk 0:01:07.1]}
22... Ne5 {[%clk 0:00:22]} 23. Ne4 {[%clk 0:00:50.6]} 23... Nxf3+ {[%clk
0:00:20]} 24. Nxf3 {[%clk 0:00:50.8]} 24... e6 {[%clk 0:00:18.8]} 25. Rad1
{[%clk 0:00:39.6]} 25... Rxd1 {[%clk 0:00:17.5]} 26. Rxd1 {[%clk 0:00:39.3]}
26... Rd8 {[%clk 0:00:12.8]} 27. Rxd8+ {[%clk 0:00:28]} 27... Qxd8 {[%clk
0:00:13.7]} 28. Qc2 {[%clk 0:00:26.7]} 28... Qd5 {[%clk 0:00:12.7]} 29. Ned2
{[%clk 0:00:24]} 29... Qxa2 {[%clk 0:00:12.5]} 30. Qc1 {[%clk 0:00:19.9]} 30...
Qd5 {[%clk 0:00:10.3]} 31. Qe1 {[%clk 0:00:18.8]} 31... a5 {[%clk 0:00:10.2]}
32. Qe3 {[%clk 0:00:18.1]} 32... Bf5 {[%clk 0:00:09.4]} 33. Kg2 {[%clk 0:00:17]}
33... b5 {[%clk 0:00:08.3]} 34. h3 {[%clk 0:00:17.4]} 34... a4 {[%clk 0:00:07]}
35. g4 {[%clk 0:00:17.9]} 35... Bg6 {[%clk 0:00:07.2]} 36. Kg1 {[%clk
0:00:16.3]} 36... Bf8 {[%clk 0:00:06.8]} 37. Nd4 {[%clk 0:00:16]} 37... b4
{[%clk 0:00:06.6]} 38. cxb4 {[%clk 0:00:14.4]} 38... Bxb4 {[%clk 0:00:07.5]} 39.
N2f3 {[%clk 0:00:14.7]} 39... Bc5 {[%clk 0:00:07.6]} 40. Qc3 {[%clk 0:00:13.6]}
40... Be4 {[%clk 0:00:07.7]} 41. Qa5 {[%clk 0:00:07.6]} 41... Bxf3 {[%clk
0:00:06.9]} 42. Nxf3 {[%clk 0:00:08.1]} 42... Bxf2+ {[%clk 0:00:06.3]} 43. Kxf2
{[%clk 0:00:07.6]} 43... Qxa5 {[%clk 0:00:07.2]} 0-1

[Event "*** Titled Tuesday Blitz"]
[Site "Chess.com"]
[Date "2020.03.03"]
[Round "7"]
[White "rogapa"]
[Black "Zq1"]
[Result "1-0"]
[WhiteElo "2750"]
[BlackElo "2553"]
[TimeControl "180+1"]
[EndTime "10:13:57 PST"]
[Termination "rogapa won on time"]

1. e4 {[%clk 0:03:00]} 1... c5 {[%clk 0:02:16.8]} 2. Nf3 {[%clk 0:02:59.6]} 2...
d6 {[%clk 0:02:16.7]} 3. d4 {[%clk 0:03:00.5]} 3... cxd4 {[%clk 0:02:16.2]} 4.
Nxd4 {[%clk 0:03:01.4]} 4... Nf6 {[%clk 0:02:16.6]} 5. Nc3 {[%clk 0:03:01.8]}
5... Nc6 {[%clk 0:02:16.8]} 6. Bg5 {[%clk 0:03:02.1]} 6... e6 {[%clk 0:02:16.2]}
7. Qd2 {[%clk 0:03:02]} 7... Be7 {[%clk 0:02:16.3]} 8. O-O-O {[%clk 0:03:01.1]}
8... Nxd4 {[%clk 0:02:16.3]} 9. Qxd4 {[%clk 0:03:00.9]} 9... a6 {[%clk
0:02:16.9]} 10. Bxf6 {[%clk 0:02:31.4]} 10... gxf6 {[%clk 0:02:16.2]} 11. Be2
{[%clk 0:02:29.4]} 11... b5 {[%clk 0:02:13.2]} 12. Bh5 {[%clk 0:02:25.7]} 12...
Qc7 {[%clk 0:02:11.2]} 13. Qd2 {[%clk 0:02:12]} 13... Qc5 {[%clk 0:02:08.8]} 14.
g4 {[%clk 0:02:09.8]} 14... b4 {[%clk 0:02:05]} 15. Ne2 {[%clk 0:02:01.7]} 15...
Bb7 {[%clk 0:02:01.3]} 16. Ng3 {[%clk 0:02:00.8]} 16... a5 {[%clk 0:01:52.1]}
17. Kb1 {[%clk 0:02:00.3]} 17... a4 {[%clk 0:01:51.8]} 18. f4 {[%clk 0:01:58.2]}
18... a3 {[%clk 0:01:50.9]} 19. b3 {[%clk 0:01:49.1]} 19... O-O {[%clk
0:01:49.4]} 20. Rhe1 {[%clk 0:01:29.6]} 20... Rac8 {[%clk 0:01:48]} 21. f5
{[%clk 0:01:25.7]} 21... Qe5 {[%clk 0:01:46]} 22. Qd4 {[%clk 0:01:23.2]} 22...
Qxd4 {[%clk 0:01:22.9]} 23. Rxd4 {[%clk 0:01:24.1]} 23... d5 {[%clk 0:01:23.2]}
24. exd5 {[%clk 0:01:19.2]} 24... Bxd5 {[%clk 0:01:21.5]} 25. Rxd5 {[%clk
0:01:14.7]} 25... exd5 {[%clk 0:01:20.9]} 26. Rxe7 {[%clk 0:01:15.1]} 26... Kg7
{[%clk 0:01:09.5]} 27. Kc1 {[%clk 0:01:12.1]} 27... Rce8 {[%clk 0:01:05.2]} 28.
Rxe8 {[%clk 0:01:07.6]} 28... Rxe8 {[%clk 0:01:04.8]} 29. Kd2 {[%clk 0:01:08.5]}
29... d4 {[%clk 0:00:50.2]} 30. h4 {[%clk 0:00:52.1]} 30... Re3 {[%clk
0:00:41.6]} 31. Ne2 {[%clk 0:00:51.4]} 31... Re4 {[%clk 0:00:41.5]} 32. Kd3
{[%clk 0:00:44.3]} 32... Re3+ {[%clk 0:00:41.2]} 33. Kd2 {[%clk 0:00:44.2]}
33... Re4 {[%clk 0:00:35.6]} 34. Ke1 {[%clk 0:00:34.5]} 34... h6 {[%clk
0:00:26]} 35. Kf2 {[%clk 0:00:33.2]} 35... Kf8 {[%clk 0:00:24.2]} 36. Nc1 {[%clk
0:00:31.5]} 36... Rf4+ {[%clk 0:00:19.6]} 37. Ke2 {[%clk 0:00:27.8]} 37... Re4+
{[%clk 0:00:18.3]} 38. Kd2 {[%clk 0:00:27.8]} 38... Re8 {[%clk 0:00:12.2]} 39.
Nd3 {[%clk 0:00:19.4]} 39... Rb8 {[%clk 0:00:11.8]} 40. Nc5 {[%clk 0:00:19.3]}
40... Ke7 {[%clk 0:00:10.8]} 41. Kd3 {[%clk 0:00:18.9]} 41... Rd8 {[%clk
0:00:09.8]} 42. Na6 {[%clk 0:00:18.3]} 42... Rc8 {[%clk 0:00:09.9]} 43. Nxb4
{[%clk 0:00:18]} 43... Rc3+ {[%clk 0:00:09.6]} 44. Kxd4 {[%clk 0:00:18.1]} 44...
Rh3 {[%clk 0:00:09.1]} 45. c4 {[%clk 0:00:18]} 45... Rxh4 {[%clk 0:00:07.5]} 46.
Kc5 {[%clk 0:00:17.8]} 46... Rh2 {[%clk 0:00:07.3]} 47. Kb6 {[%clk 0:00:17.4]}
47... Rb2 {[%clk 0:00:01.5]} 48. c5 {[%clk 0:00:17.1]} 1-0